fUSD/lending_fUSD_20240618
["ID","MTS","AMOUNT","RATE_DAILY","PERIOD"]
[329780714,1718669223310,176.0,0.000225,120]
[329781000,1718669378247,162.89,0.00021589,30]
[329781007,1718669431861,-155.0,0.00013693,2]
[329781008,1718669431870,-155.0,0.00013694,2]
[329781009,1718669431880,-258.2312,0.000137,2]
[329781011,1718669431889,-300.0,0.00013778,2]
[329781013,1718669431898,-19587.18949958,0.00013779,2]
[329781015,1718669431907,-61822.295,0.00013799,2]
[329781017,1718669431916,-60951.484,0.000138,2]
[329781019,1718669431925,-174.8366,0.000138,2]
[329781021,1718669431935,-1000.0,0.000138,2]
[329781022,1718669431944,-240.76440297,0.00013999,2]
[329781023,1718669431953,-237.23360084,0.00013999,2]
[329781024,1718669431963,-341.87412055,0.00013999,2]
[329781025,1718669431972,-199.4396242,0.00013999,2]
[329781026,1718669431981,-370.89,0.00017171,2]
[329781027,1718669431990,-368.36,0.00017534,2]
[329781028,1718669432000,-836.56,0.00017596,2]
[329781029,1718669432009,-499.8357,0.000179,2]
[329781030,1718669432018,-589.0,0.000183,2]
[329781031,1718669432027,-1735.0,0.000183,2]
[329781032,1718669432037,-250.0,0.00018711,2]
[329781033,1718669432046,-180.0,0.00018937,2]
[329781034,1718669432055,-250.0,0.00018964,2]
[329781035,1718669432064,-151.0,0.000193,2]
[329781036,1718669432074,-370.89,0.00019435,2]
[329781037,1718669432083,-836.56,0.00019796,2]
[329781038,1718669432092,-150.0,0.00019907,2]
[329781039,1718669432101,-150.0,0.00019907,2]
[329781040,1718669432111,-150.0,0.00019907,2]
[329781041,1718669432120,-151.0,0.000201,2]
[329781042,1718669432129,-293.70210022,0.00020598,2]
[329781043,1718669432138,-245000.0,0.00020598,2]
[329781044,1718669432148,-150.0,0.00020698,2]
[329781045,1718669432157,-359.0,0.00020698,2]
[329781046,1718669432166,-1271.0,0.00020698,2]
[329781047,1718669432175,-165.0,0.00020698,2]
[329781048,1718669432184,-447.0,0.00020698,2]
[329781049,1718669432194,-2409.0,0.00020698,2]
[329781050,1718669432203,-1304.0,0.00020698,2]
[329781051,1718669432213,-547.0,0.00020698,2]
[329781052,1718669432223,-1981.0,0.00020698,2]
[329781053,1718669432233,-3197.0,0.00020698,2]
[329781054,1718669432242,-5162.0,0.00020698,2]
[329781055,1718669432252,-5792.0,0.00020698,2]
[329781056,1718669432260,-1659.0,0.00020698,2]
[329781057,1718669432270,-38118.0,0.00020698,2]
[329781058,1718669432280,-290.0,0.00020698,2]
[329781059,1718669432289,-1196.0,0.00020698,2]
[329781060,1718669432299,-151.0,0.000209,2]
[329781061,1718669432309,-938.78279074,0.00020942,2]
[329781062,1718669432318,-1250.0,0.00021,2]
[329781063,1718669432328,-293.70210016,0.00021085,2]
[329781064,1718669432338,-400.0,0.000215,7]
[329781065,1718669432348,-293.70210016,0.00021573,2]
[329781066,1718669432357,-900.0,0.000216,7]
[329781067,1718669432367,-1000.0,0.000216,2]
[329781068,1718669432376,-370.89,0.00021699,2]
[329781069,1718669432385,-1400.0,0.000217,7]
[329781070,1718669432395,-151.0,0.000217,2]
[329781071,1718669432404,-1900.0,0.000218,7]
[329781072,1718669432414,-430.4114,0.00021807,2]
[329781073,1718669432424,-600.0,0.00021815,2]
[329781074,1718669432433,-500.0,0.00021817,2]
[329781075,1718669432443,-10000.0,0.00021817,2]
[329781076,1718669432452,-7500.0,0.00021817,2]
[329781077,1718669432467,-173.26790299,0.00021817,2]
[329781078,1718669432477,-934.45430029,0.00021817,2]
[329781079,1718669432486,-300.93571133,0.00021851,2]
[329781080,1718669432495,-200.0,0.00021878,2]
[329781081,1718669432504,-523.90638995,0.00021899,2]
[329781082,1718669432514,-2400.0,0.000219,7]
[329781083,1718669432523,-489.0,0.000219,4]
[329781084,1718669432532,-291.0,0.000219,2]
[329781085,1718669432541,-191.0,0.000219,4]
[329781086,1718669432551,-1000.0,0.000219,2]
[329781087,1718669432560,-1922.98480432,0.00021915,2]
[329781088,1718669432569,-155.0,0.00021915,2]
[329781089,1718669432579,-187.6090952,0.00021915,2]
[329781090,1718669432588,-1090.6619979,0.00021915,2]
[329781091,1718669432598,-542.2859949,0.00021915,2]
[329781092,1718669432607,-55340.4154977,0.00021915,2]
[329781093,1718669432616,-3200.4320841,0.00021915,2]
[329781094,1718669432626,-4330.0896574,0.00021915,2]
[329781095,1718669432635,-307.93060477,0.00021916,2]
[329781096,1718669432645,-1523.92893793,0.00021916,2]
[329781097,1718669432654,-163.9969877,0.00021916,2]
[329781098,1718669432663,-500.0,0.00021916,2]
[329781099,1718669432672,-165.40600797,0.00021916,2]
[329781100,1718669432682,-500.0,0.00021916,2]
[329781101,1718669432691,-500.0,0.00021916,2]
[329781102,1718669432699,-441.53634957,0.00021916,2]
[329781103,1718669432709,-500.0,0.00021916,2]
[329781104,1718669432718,-500.0,0.00021916,2]
[329781105,1718669432727,-500.0,0.00021916,2]
[329781106,1718669432737,-500.0,0.00021916,2]
[329781107,1718669432746,-578.21777903,0.00021916,2]
[329781108,1718669432755,-657.0,0.00021917,2]
[329781109,1718669432765,-4698.0381983,0.00021917,2]
[329781110,1718669432776,-500.0,0.00021917,2]
[329781111,1718669432788,-500.0,0.00021917,2]
[329781112,1718669432797,-524.60188119,0.00021917,2]
[329781113,1718669432806,-500.0,0.00021917,2]
[329781114,1718669432816,-500.0,0.00021917,2]
[329781115,1718669432825,-500.0,0.00021917,2]
[329781116,1718669432834,-507.29468874,0.00021917,2]
[329781117,1718669432844,-500.0,0.00021917,2]
[329781118,1718669432853,-500.0,0.00021917,2]
[329781119,1718669432867,-515.07776956,0.00021917,2]
[329781120,1718669432878,-500.0,0.00021917,2]
[329781121,1718669432887,-500.0,0.00021917,2]
[329781122,1718669432897,-500.0,0.00021917,2]
[329781123,1718669432906,-500.0,0.00021917,2]
[329781124,1718669432916,-418.45056062,0.00021917,2]
[329781125,1718669432925,-508.92888988,0.00021917,2]
[329781126,1718669432935,-500.0,0.00021917,2]
[329781127,1718669432944,-501.86745144,0.00021917,2]
[329781128,1718669432953,-500.0,0.00021917,2]
[329781129,1718669432963,-544.103924,0.00021917,2]
[329781130,1718669432972,-500.0,0.00021917,2]
[329781131,1718669432982,-500.0,0.00021917,2]
[329781132,1718669432991,-500.0,0.00021917,2]
[329781133,1718669433001,-500.0,0.00021917,2]
[329781134,1718669433011,-500.0,0.00021917,2]
[329781135,1718669433021,-500.0,0.00021917,2]
[329781136,1718669433030,-500.0,0.00021917,2]
[329781137,1718669433039,-580.41515203,0.00021917,2]
[329781138,1718669433048,-500.0,0.00021917,2]
[329781139,1718669433058,-500.0,0.00021917,2]
[329781140,1718669433067,-500.0,0.00021917,2]
[329781141,1718669433076,-500.0,0.00021917,2]
[329781142,1718669433085,-500.34524493,0.00021917,2]
[329781143,1718669433094,-500.0,0.00021917,2]
[329781144,1718669433103,-500.0,0.00021917,2]
[329781145,1718669433112,-153.99688029,0.00021917,2]
[329781146,1718669433121,-500.0,0.00021917,2]
[329781147,1718669433130,-500.0,0.00021917,2]
[329781148,1718669433139,-500.0,0.00021917,2]
[329781149,1718669433148,-341.85020983,0.00021917,2]
[329781150,1718669433158,-500.0,0.00021917,2]
[329781151,1718669433167,-500.0,0.00021917,2]
[329781152,1718669433176,-500.0,0.00021917,2]
[329781153,1718669433184,-500.0,0.00021917,2]
[329781154,1718669433194,-500.0,0.00021917,2]
[329781155,1718669433203,-500.0,0.00021917,2]
[329781156,1718669433212,-273.99464657,0.00021917,2]
[329781157,1718669433221,-545.5424767,0.00021917,2]
[329781158,1718669433231,-500.0,0.00021917,2]
[329781159,1718669433240,-500.0,0.00021917,2]
[329781160,1718669433251,-485.19900676,0.00021917,2]
[329781161,1718669433260,-500.0,0.00021917,2]
[329781162,1718669433269,-500.0,0.00021917,2]
[329781163,1718669433278,-500.0,0.00021917,2]
[329781164,1718669433287,-500.0,0.00021917,2]
[329781165,1718669433304,-500.0,0.00021917,2]
[329781166,1718669433313,-500.0,0.00021917,2]
[329781167,1718669433322,-500.0,0.00021917,2]
[329781168,1718669433332,-500.0,0.00021917,2]
[329781169,1718669433341,-500.0,0.00021917,2]
[329781170,1718669433353,-500.0,0.00021917,2]
[329781171,1718669433363,-501.53820443,0.00021917,2]
[329781172,1718669433371,-500.0,0.00021917,2]
[329781173,1718669433382,-501.92804048,0.00021917,2]
[329781174,1718669433392,-501.38185139,0.00021917,2]
[329781175,1718669433401,-501.82181966,0.00021917,2]
[329781176,1718669433410,-506.70918247,0.00021917,2]
[329781177,1718669433419,-500.0,0.00021917,2]
[329781178,1718669433428,-500.0,0.00021917,2]
[329781179,1718669433437,-496.93185717,0.00021917,2]
[329781180,1718669433446,-499.25719064,0.00021917,2]
[329781181,1718669433454,-500.0,0.00021917,2]
[329781182,1718669433463,-501.79927568,0.00021917,2]
[329781183,1718669433473,-190.09590636,0.00021917,2]
[329781184,1718669433482,-542.41133973,0.00021917,2]
[329781185,1718669433491,-500.0,0.00021917,2]
[329781186,1718669433501,-500.0,0.00021917,2]
[329781187,1718669433510,-500.0,0.00021917,2]
[329781188,1718669433519,-500.0,0.00021917,2]
[329781189,1718669433528,-500.0,0.00021917,2]
[329781190,1718669433538,-500.0,0.00021917,2]
[329781191,1718669433547,-500.0,0.00021917,2]
[329781192,1718669433556,-500.0,0.00021917,2]
[329781193,1718669433565,-500.0,0.00021917,2]
[329781194,1718669433574,-500.0,0.00021917,2]
[329781195,1718669433583,-500.0,0.00021917,2]
[329781196,1718669433593,-184.26018314,0.00021917,2]
[329781197,1718669433602,-500.0,0.00021917,2]
[329781198,1718669433611,-500.0,0.00021917,2]
[329781199,1718669433621,-500.0,0.00021917,2]
[329781200,1718669433630,-500.0,0.00021917,2]
[329781201,1718669433639,-500.0,0.00021917,2]
[329781202,1718669433648,-500.0,0.00021917,2]
[329781203,1718669433658,-647.06015092,0.00021917,2]
[329781204,1718669433668,-500.18,0.00021917,2]
[329781205,1718669433677,-291.32542202,0.00021917,2]
[329781206,1718669433686,-500.0,0.00021917,2]
[329781207,1718669433696,-500.0,0.00021917,2]
[329781208,1718669433705,-500.0,0.00021917,2]
[329781209,1718669433714,-500.0,0.00021917,2]
[329781210,1718669433723,-195.24354536,0.00021917,2]
[329781211,1718669433732,-500.0,0.00021917,2]
[329781212,1718669433742,-221.59382924,0.00021917,2]
[329781213,1718669433752,-500.0,0.00021917,2]
[329781214,1718669433761,-500.0,0.00021917,2]
[329781215,1718669433775,-500.0,0.00021917,2]
[329781216,1718669433784,-500.0,0.00021917,2]
[329781217,1718669433794,-500.0,0.00021917,2]
[329781218,1718669433803,-526.89074699,0.00021917,2]
[329781219,1718669433812,-500.0,0.00021917,2]
[329781220,1718669433824,-500.0,0.00021917,2]
[329781221,1718669433834,-500.0,0.00021917,2]
[329781222,1718669433844,-500.69398969,0.00021917,2]
[329781223,1718669433853,-500.0,0.00021917,2]
[329781224,1718669433863,-515.82968528,0.00021917,2]
[329781225,1718669433872,-500.0,0.00021917,2]
[329781226,1718669433881,-500.0,0.00021917,2]
[329781227,1718669433890,-500.0,0.00021917,2]
[329781228,1718669433900,-500.0,0.00021917,2]
[329781229,1718669433909,-500.0,0.00021917,2]
[329781230,1718669433918,-530.66783031,0.00021917,2]
[329781231,1718669433927,-353.40159843,0.00021917,2]
[329781232,1718669433936,-606.64243214,0.00021917,2]
[329781233,1718669433945,-500.0,0.00021917,2]
[329781234,1718669433955,-500.0,0.00021917,2]
[329781235,1718669433964,-503.53071086,0.00021917,2]
[329781236,1718669433973,-500.0,0.00021917,2]
[329781237,1718669433983,-481.71522863,0.00021917,2]
[329781238,1718669433992,-500.0,0.00021917,2]
[329781239,1718669434002,-500.0,0.00021917,2]
[329781240,1718669434011,-500.0,0.00021917,2]
[329781241,1718669434020,-501.93633291,0.00021917,2]
[329781242,1718669434029,-500.0,0.00021917,2]
[329781243,1718669434039,-494.96969412,0.00021917,2]
[329781244,1718669434048,-500.0,0.00021917,2]
[329781245,1718669434057,-500.0,0.00021917,2]
[329781246,1718669434066,-500.0,0.00021917,2]
[329781247,1718669434075,-535.16,0.00021917,2]
[329781248,1718669434084,-500.0,0.00021917,2]
[329781249,1718669434094,-500.0,0.00021917,2]
[329781250,1718669434102,-500.0,0.00021917,2]
[329781251,1718669434111,-500.0,0.00021917,2]
[329781252,1718669434120,-500.0,0.00021917,2]
[329781253,1718669434129,-500.0,0.00021917,2]
[329781254,1718669434138,-510.83621354,0.00021917,2]
[329781255,1718669434146,-520.16001712,0.00021917,2]
[329781256,1718669434155,-500.0,0.00021917,2]
[329781257,1718669434164,-500.0,0.00021917,2]
[329781258,1718669434173,-501.22477815,0.00021917,2]
[329781259,1718669434182,-500.89424431,0.00021917,2]
[329781260,1718669434191,-500.0,0.00021917,2]
[329781261,1718669434200,-509.37526192,0.00021917,2]
[329781262,1718669434209,-500.0,0.00021917,2]
[329781263,1718669434218,-500.35754771,0.00021917,2]
[329781264,1718669434227,-500.0,0.00021917,2]
[329781265,1718669434236,-500.38261005,0.00021917,2]
[329781266,1718669434245,-500.0,0.00021917,2]
[329781267,1718669434254,-500.0,0.00021917,2]
[329781268,1718669434263,-500.0,0.00021917,2]
[329781269,1718669434272,-613.01426228,0.00021917,2]
[329781270,1718669434281,-498.73670827,0.00021917,2]
[329781271,1718669434290,-500.0,0.00021917,2]
[329781272,1718669434299,-501.3169105,0.00021917,2]
[329781273,1718669434308,-500.0,0.00021917,2]
[329781274,1718669434316,-500.0,0.00021917,2]
[329781275,1718669434326,-341.16364404,0.00021917,2]
[329781276,1718669434335,-500.0,0.00021917,2]
[329781277,1718669434345,-500.0,0.00021917,2]
[329781278,1718669434354,-309.59158175,0.00021917,2]
[329781279,1718669434363,-500.44187597,0.00021917,2]
[329781280,1718669434372,-500.0,0.00021917,2]
[329781281,1718669434380,-393.26957857,0.00021917,2]
[329781282,1718669434389,-500.0,0.00021917,2]
[329781283,1718669434398,-500.0,0.00021917,2]
[329781284,1718669434407,-156.03824439,0.00021917,2]
[329781285,1718669434416,-500.0,0.00021917,2]
[329781286,1718669434424,-500.51785695,0.00021917,2]
[329781287,1718669434433,-500.0,0.00021917,2]
[329781288,1718669434442,-500.0,0.00021917,2]
[329781289,1718669434451,-276.73284418,0.00021917,2]
[329781290,1718669434460,-500.0,0.00021917,2]
[329781291,1718669434469,-500.0,0.00021917,2]
[329781292,1718669434478,-542.91423989,0.00021917,2]
[329781293,1718669434487,-500.0,0.00021917,2]
[329781294,1718669434496,-500.0,0.00021917,2]
[329781295,1718669434504,-500.0,0.00021917,2]
[329781296,1718669434513,-500.0,0.00021917,2]
[329781297,1718669434522,-500.0,0.00021917,2]
[329781298,1718669434532,-500.0,0.00021917,2]
[329781299,1718669434541,-500.0,0.00021917,2]
[329781300,1718669434550,-500.0,0.00021917,2]
[329781301,1718669434559,-500.0,0.00021917,2]
[329781302,1718669434568,-500.0,0.00021917,2]
[329781303,1718669434577,-500.0,0.00021917,2]
[329781304,1718669434586,-500.0,0.00021917,2]
[329781305,1718669434595,-200.56225484,0.00021917,2]
[329781306,1718669434605,-500.0,0.00021917,2]
[329781307,1718669434614,-500.0,0.00021917,2]
[329781308,1718669434622,-500.0,0.00021917,2]
[329781309,1718669434631,-500.0,0.00021917,2]
[329781310,1718669434640,-500.0,0.00021917,2]
[329781311,1718669434649,-500.0,0.00021917,2]
[329781312,1718669434658,-564.12,0.00021917,2]
[329781313,1718669434667,-500.0,0.00021917,2]
[329781314,1718669434677,-500.0,0.00021917,2]
[329781315,1718669434686,-500.0,0.00021917,2]
[329781316,1718669434695,-500.0,0.00021917,2]
[329781317,1718669434704,-500.0,0.00021917,2]
[329781318,1718669434713,-500.0,0.00021917,2]
[329781319,1718669434722,-544.86,0.00021917,2]
[329781320,1718669434731,-500.0,0.00021917,2]
[329781321,1718669434740,-631.26718893,0.00021917,2]
[329781322,1718669434749,-500.0,0.00021917,2]
[329781323,1718669434759,-500.0,0.00021917,2]
[329781324,1718669434768,-500.0,0.00021917,2]
[329781325,1718669434779,-596.19,0.00021917,2]
[329781326,1718669434788,-500.0,0.00021917,2]
[329781327,1718669434797,-500.0,0.00021917,2]
[329781328,1718669434806,-500.0,0.00021917,2]
[329781329,1718669434816,-500.0,0.00021917,2]
[329781330,1718669434826,-979.53,0.00021917,2]
[329781331,1718669434834,-500.0,0.00021917,2]
[329781332,1718669434844,-500.0,0.00021917,2]
[329781333,1718669434854,-500.0,0.00021917,2]
[329781334,1718669434864,-500.0,0.00021917,2]
[329781335,1718669434874,-707.76,0.00021917,2]
[329781336,1718669434883,-500.0,0.00021917,2]
[329781337,1718669434892,-500.0,0.00021917,2]
[329781338,1718669434901,-1496.23,0.00021917,2]
[329781339,1718669434910,-642.21,0.00021917,2]
[329781340,1718669434919,-500.0,0.00021917,2]
[329781341,1718669434928,-506.48,0.00021917,2]
[329781342,1718669434938,-606.33,0.00021917,2]
[329781343,1718669434948,-718.01,0.00021917,2]
[329781344,1718669434957,-500.0,0.00021917,2]
[329781345,1718669434967,-1316.16,0.00021917,2]
[329781346,1718669434977,-831.55,0.00021917,2]
[329781347,1718669434986,-500.0,0.00021917,2]
[329781348,1718669434995,-795.25,0.00021917,2]
[329781349,1718669435004,-500.0,0.00021917,2]
[329781350,1718669435014,-500.0,0.00021917,2]
[329781351,1718669435023,-505.78464942,0.00021917,2]
[329781352,1718669435032,-511.33,0.00021917,2]
[329781353,1718669435041,-500.0,0.00021917,2]
[329781354,1718669435051,-509.92483867,0.00021917,2]
[329781355,1718669435060,-500.0,0.00021917,2]
[329781356,1718669435069,-500.0,0.00021917,2]
[329781357,1718669435078,-500.0,0.00021917,2]
[329781358,1718669435087,-500.0,0.00021917,2]
[329781359,1718669435097,-500.0,0.00021917,2]
[329781360,1718669435106,-500.0,0.00021917,2]
[329781361,1718669435115,-500.0,0.00021917,2]
[329781362,1718669435124,-500.0,0.00021917,2]
[329781363,1718669435133,-608.37942653,0.00021917,2]
[329781364,1718669435143,-500.0,0.00021917,2]
[329781365,1718669435152,-500.0,0.00021917,2]
[329781366,1718669435162,-500.0,0.00021917,2]
[329781367,1718669435171,-500.86,0.00021917,2]
[329781368,1718669435180,-500.0,0.00021917,2]
[329781369,1718669435189,-310.0,0.00021917,2]
[329781370,1718669435199,-2002.52023938,0.00021917,2]
[329781371,1718669435208,-500.0,0.00021917,2]
[329781372,1718669435218,-654.1,0.00021917,2]
[329781373,1718669435227,-693.93,0.00021917,2]
[329781374,1718669435237,-156.65921326,0.00021917,2]
[329781375,1718669435246,-500.0,0.00021917,2]
[329781376,1718669435255,-500.0,0.00021917,2]
[329781377,1718669435265,-500.0,0.00021917,2]
[329781378,1718669435274,-500.0,0.00021917,2]
[329781379,1718669435283,-500.0,0.00021917,2]
[329781380,1718669435292,-500.0,0.00021917,2]
[329781381,1718669435314,-500.0,0.00021917,2]
[329781382,1718669435324,-500.37860123,0.00021917,2]
[329781383,1718669435333,-500.0,0.00021917,2]
[329781384,1718669435342,-500.0,0.00021917,2]
[329781385,1718669435354,-500.0,0.00021917,2]
[329781386,1718669435363,-500.0,0.00021917,2]
[329781387,1718669435372,-500.0,0.00021917,2]
[329781388,1718669435381,-500.0,0.00021917,2]
[329781389,1718669435391,-500.0,0.00021917,2]
[329781390,1718669435400,-500.0,0.00021917,2]
[329781391,1718669435409,-1144.63,0.00021917,2]
[329781392,1718669435418,-523.73,0.00021917,2]
[329781393,1718669435427,-500.0,0.00021917,2]
[329781394,1718669435436,-500.0,0.00021917,2]
[329781395,1718669435445,-500.0,0.00021917,2]
[329781396,1718669435455,-500.0,0.00021917,2]
[329781397,1718669435464,-500.0,0.00021917,2]
[329781398,1718669435473,-500.0,0.00021917,2]
[329781399,1718669435482,-500.0,0.00021917,2]
[329781400,1718669435491,-500.0,0.00021917,2]
[329781401,1718669435500,-500.0,0.00021917,2]
[329781402,1718669435509,-514.10365847,0.00021917,2]
[329781403,1718669435518,-897.9,0.00021917,2]
[329781404,1718669435527,-500.0,0.00021917,2]
[329781405,1718669435536,-500.0,0.00021917,2]
[329781406,1718669435546,-500.0,0.00021917,2]
[329781407,1718669435555,-500.0,0.00021917,2]
[329781408,1718669435565,-500.0,0.00021917,2]
[329781409,1718669435574,-500.0,0.00021917,2]
[329781410,1718669435582,-500.0,0.00021917,2]
[329781411,1718669435591,-500.0,0.00021917,2]
[329781412,1718669435600,-500.0,0.00021917,2]
[329781413,1718669435610,-500.0,0.00021917,2]
[329781414,1718669435619,-500.0,0.00021917,2]
[329781415,1718669435628,-500.0,0.00021917,2]
[329781416,1718669435637,-547.40100657,0.00021917,2]
[329781417,1718669435646,-500.0,0.00021917,2]
[329781418,1718669435655,-717.27,0.00021917,2]
[329781419,1718669435665,-500.0,0.00021917,2]
[329781420,1718669435674,-500.0,0.00021917,2]
[329781421,1718669435683,-250.0,0.00021917,2]
[329781422,1718669435692,-500.0,0.00021917,2]
[329781423,1718669435701,-500.0,0.00021917,2]
[329781424,1718669435710,-101.72168547,0.00021917,2]
[329781425,1718669436376,-391.85679535,0.00021917,2]
[329781426,1718669436427,-6.42151918,0.00021917,2]
[329781427,1718669436438,-500.0,0.00021917,2]
[329781428,1718669436448,-500.0,0.00021917,2]
[329781429,1718669436458,-500.0,0.00021917,2]
[329781430,1718669436468,-503.35114527,0.00021917,2]
[329781431,1718669436479,-500.0,0.00021917,2]
[329781432,1718669436488,-500.0,0.00021917,2]
[329781433,1718669436502,-546.05674172,0.00021917,2]
[329781434,1718669436511,-500.0,0.00021917,2]
[329781435,1718669436521,-500.0,0.00021917,2]
[329781436,1718669436531,-500.0,0.00021917,2]
[329781437,1718669436540,-522.31514779,0.00021917,2]
[329781438,1718669436551,-574.85676721,0.00021917,2]
[329781439,1718669436561,-500.0,0.00021917,2]
[329781440,1718669436571,-545.33,0.00021917,2]
[329781441,1718669436581,-500.0,0.00021917,2]
[329781442,1718669436591,-500.0,0.00021917,2]
[329781443,1718669436601,-500.0,0.00021917,2]
[329781444,1718669436612,-527.53062163,0.00021917,2]
[329781445,1718669436622,-500.0,0.00021917,2]
[329781446,1718669436631,-951.94,0.00021917,2]
[329781447,1718669436641,-1042.45,0.00021917,2]
[329781448,1718669436651,-500.0,0.00021917,2]
[329781449,1718669436661,-395.7480572,0.00021917,2]
[329781478,1718669438309,-104.2519428,0.00021917,2]
[329781479,1718669438319,-208.67071965,0.00021917,2]
[329781480,1718669438373,-291.32928035,0.00021917,2]
[329781481,1718669438382,-500.0,0.00021917,2]
[329781482,1718669438391,-500.0,0.00021917,2]
[329781483,1718669438401,-500.0,0.00021917,2]
[329781484,1718669438410,-500.0,0.00021917,2]
[329781485,1718669438419,-500.0,0.00021917,2]
[329781486,1718669438428,-500.0,0.00021917,2]
[329781487,1718669438437,-500.0,0.00021917,2]
[329781488,1718669438446,-500.0,0.00021917,2]
[329781489,1718669438455,-500.0,0.00021917,2]
[329781490,1718669438464,-654.27,0.00021917,2]
[329781491,1718669438473,-500.0,0.00021917,2]
[329781492,1718669438482,-500.0,0.00021917,2]
[329781493,1718669438491,-500.0,0.00021917,2]
[329781494,1718669438499,-826.86,0.00021917,2]
[329781495,1718669438508,-850.46,0.00021917,2]
[329781496,1718669438518,-696.27,0.00021917,2]
[329781497,1718669438527,-500.0,0.00021917,2]
[329781498,1718669438536,-507.59048817,0.00021917,2]
[329781499,1718669438545,-500.0,0.00021917,2]
[329781500,1718669438555,-500.0,0.00021917,2]
[329781501,1718669438565,-500.0,0.00021917,2]
[329781502,1718669438575,-500.0,0.00021917,2]
[329781503,1718669438585,-500.0,0.00021917,2]
[329781504,1718669438594,-500.0,0.00021917,2]
[329781505,1718669438604,-500.0,0.00021917,2]
[329781506,1718669438614,-500.0,0.00021917,2]
[329781507,1718669438623,-500.0,0.00021917,2]
[329781508,1718669438633,-1290.21,0.00021917,2]
[329781509,1718669438643,-500.0,0.00021917,2]
[329781510,1718669438653,-568.95,0.00021917,2]
[329781511,1718669438664,-500.0,0.00021917,2]
[329781512,1718669438673,-500.0,0.00021917,2]
[329781513,1718669438683,-552.53,0.00021917,2]
[329781514,1718669438693,-500.0,0.00021917,2]
[329781515,1718669438702,-500.0,0.00021917,2]
[329781516,1718669438712,-500.0,0.00021917,2]
[329781517,1718669438722,-500.0,0.00021917,2]
[329781518,1718669438731,-1212.96,0.00021917,2]
[329781519,1718669438741,-500.0,0.00021917,2]
[329781520,1718669438750,-500.0,0.00021917,2]
[329781521,1718669438760,-500.0,0.00021917,2]
[329781522,1718669438773,-500.0,0.00021917,2]
[329781523,1718669438787,-500.0,0.00021917,2]
[329781524,1718669438797,-500.0,0.00021917,2]
[329781525,1718669438807,-500.0,0.00021917,2]
[329781526,1718669438819,-500.0,0.00021917,2]
[329781527,1718669438835,-676.79,0.00021917,2]
[329781528,1718669438851,-500.0,0.00021917,2]
[329781529,1718669438861,-500.0,0.00021917,2]
[329781530,1718669438871,-500.0,0.00021917,2]
[329781531,1718669438881,-500.0,0.00021917,2]
[329781532,1718669438891,-500.0,0.00021917,2]
[329781533,1718669438900,-500.0,0.00021917,2]
[329781534,1718669438910,-500.0,0.00021917,2]
[329781535,1718669438920,-500.0,0.00021917,2]
[329781536,1718669438930,-967.06,0.00021917,2]
[329781537,1718669438939,-500.0,0.00021917,2]
[329781538,1718669438949,-500.0,0.00021917,2]